[Event "Senior Men Russian Championship 2022_HL"]
[Site "Saint-Petersburg, Russia"]
[Date "2022.09.30"]
[Round "7.2"]
[White "Provotorov, Alexandr P."]
[Black "Ionov, Sergey"]
[Result "1/2-1/2"]
[TimeControl "40+30"]
[WhiteElo "2277"]
[BlackElo "2513"]

1. e4 {[%clk 01:30:36]} {[%emt 00:00:23]} c5 {[%clk 01:30:51]} {[%emt
00:00:10]} 2. c3 {[%clk 01:29:15]} {[%emt 00:01:51]} Nf6 {[%clk 01:29:47]}
{[%emt 00:01:34]} 3. e5 {[%clk 01:28:50]} {[%emt 00:00:55]} Nd5 {[%clk
01:30:12]} {[%emt 00:00:05]} 4. d4 {[%clk 01:28:40]} {[%emt 00:00:39]} cxd4
{[%clk 01:30:36]} {[%emt 00:00:06]} 5. Nf3 {[%clk 01:29:06]} {[%emt 00:00:05]}
Nc6 {[%clk 01:28:49]} {[%emt 00:02:17]} 6. cxd4 {[%clk 01:26:41]} {[%emt
00:02:54]} d6 {[%clk 01:27:43]} {[%emt 00:01:36]} 7. Bc4 {[%clk 01:25:23]}
{[%emt 00:01:48]} Nb6 {[%clk 01:23:26]} {[%emt 00:04:48]} 8. Bb5 {[%clk
01:25:30]} {[%emt 00:00:22]} dxe5 {[%clk 01:23:49]} {[%emt 00:00:07]} 9. Nxe5
{[%clk 01:25:52]} {[%emt 00:00:08]} Bd7 {[%clk 01:24:15]} {[%emt 00:00:05]} 10.
Nxd7 {[%clk 01:20:34]} {[%emt 00:05:46]} Qxd7 {[%clk 01:20:26]} {[%emt
00:04:21]} 11. Nc3 {[%clk 01:20:17]} {[%emt 00:00:47]} e6 {[%clk 01:20:30]}
{[%emt 00:00:25]} 12. O-O {[%clk 01:20:01]} {[%emt 00:00:46]} Rd8 {[%clk
01:12:57]} {[%emt 00:08:03]} 13. Bg5 {[%clk 01:04:32]} {[%emt 00:15:59]} Be7
{[%clk 01:10:36]} {[%emt 00:02:51]} 14. Bxe7 {[%clk 01:04:32]} {[%emt
00:00:30]} Qxe7 {[%clk 01:10:59]} {[%emt 00:00:07]} 15. Qf3 {[%clk 00:52:14]}
{[%emt 00:12:48]} O-O {[%clk 01:05:35]} {[%emt 00:05:55]} 16. Bxc6 {[%clk
00:52:15]} {[%emt 00:00:28]} bxc6 {[%clk 01:06:01]} {[%emt 00:00:05]} 17. Qxc6
{[%clk 00:44:34]} {[%emt 00:08:11]} Rxd4 {[%clk 01:05:42]} {[%emt 00:00:48]} 18.
Rad1 {[%clk 00:44:17]} {[%emt 00:00:46]} Rb4 {[%clk 01:02:02]} {[%emt
00:04:08]} 19. b3 {[%clk 00:42:58]} {[%emt 00:01:52]} Rc8 {[%clk 01:01:48]}
{[%emt 00:00:42]} 20. Qf3 {[%clk 00:42:34]} {[%emt 00:00:56]} h6 {[%clk
00:55:19]} {[%emt 00:06:58]} 21. h3 {[%clk 00:41:04]} {[%emt 00:02:00]} Qc7
{[%clk 00:48:09]} {[%emt 00:07:40]} 22. Rc1 {[%clk 00:38:08]} {[%emt 00:03:27]}
Qd7 {[%clk 00:45:17]} {[%emt 00:03:20]} 23. Rcd1 {[%clk 00:24:50]} {[%emt
00:13:50]} Rd4 {[%clk 00:42:23]} {[%emt 00:03:23]} 24. Qe3 {[%clk 00:18:28]}
{[%emt 00:06:53]} Rd6 {[%clk 00:31:53]} {[%emt 00:10:59]} 25. Rxd6 {[%clk
00:17:29]} {[%emt 00:01:30]} Qxd6 {[%clk 00:32:21]} {[%emt 00:00:02]} 26. Rd1
{[%clk 00:17:43]} {[%emt 00:00:15]} Qb4 {[%clk 00:25:08]} {[%emt 00:07:41]}
1/2-1/2

[Event "Senior Men Russian Championship 2022_HL"]
[Site "Saint-Petersburg, Russia"]
[Date "2022.09.30"]
[Round "7.3"]
[White "Vul, Arkadi Eremeevich"]
[Black "Balashov, Yuri S"]
[Result "1/2-1/2"]
[TimeControl "40+30"]
[WhiteElo "2181"]
[BlackElo "2395"]

1. Nf3 {[%clk 01:30:57]} {[%emt 00:00:02]} c5 {[%clk 01:30:48]} {[%emt
00:00:13]} 2. c4 {[%clk 01:31:22]} {[%emt 00:00:04]} Nc6 {[%clk 01:31:07]}
{[%emt 00:00:11]} 3. d4 {[%clk 01:31:47]} {[%emt 00:00:06]} cxd4 {[%clk
01:31:31]} {[%emt 00:00:05]} 4. Nxd4 {[%clk 01:32:15]} {[%emt 00:00:03]} Qb6
{[%clk 01:31:08]} {[%emt 00:00:53]} 5. e3 {[%clk 01:32:01]} {[%emt 00:00:44]}
Nf6 {[%clk 01:31:16]} {[%emt 00:00:21]} 6. Nc3 {[%clk 01:32:17]} {[%emt
00:00:15]} e6 {[%clk 01:30:58]} {[%emt 00:00:47]} 7. a3 {[%clk 01:21:50]}
{[%emt 00:10:58]} Be7 {[%clk 01:28:36]} {[%emt 00:02:50]} 8. Be2 {[%clk
01:19:21]} {[%emt 00:03:00]} O-O {[%clk 01:28:33]} {[%emt 00:00:33]} 9. O-O
{[%clk 01:19:39]} {[%emt 00:00:12]} d6 {[%clk 01:23:32]} {[%emt 00:05:31]} 10.
b4 {[%clk 01:10:52]} {[%emt 00:09:17]} a6 {[%clk 01:22:08]} {[%emt 00:01:54]}
11. Bb2 {[%clk 01:07:35]} {[%emt 00:03:47]} Bd7 {[%clk 01:16:28]} {[%emt
00:06:09]} 12. Nb3 {[%clk 01:05:24]} {[%emt 00:02:43]} Rfd8 {[%clk 01:10:31]}
{[%emt 00:06:26]} 13. Rc1 {[%clk 00:44:27]} {[%emt 00:21:27]} Be8 {[%clk
01:09:12]} {[%emt 00:01:48]} 14. Qd2 {[%clk 00:42:29]} {[%emt 00:02:29]} a5
{[%clk 00:59:18]} {[%emt 00:10:23]} 15. Na4 {[%clk 00:41:35]} {[%emt 00:01:25]}
Qc7 {[%clk 00:58:00]} {[%emt 00:01:49]} 16. b5 {[%clk 00:41:42]} {[%emt
00:00:23]} Ne5 {[%clk 00:56:31]} {[%emt 00:01:58]} 17. Rfd1 {[%clk 00:26:01]}
{[%emt 00:16:11]} b6 {[%clk 00:56:29]} {[%emt 00:00:32]} 18. f4 {[%clk
00:23:48]} {[%emt 00:02:44]} Ng6 {[%clk 00:51:26]} {[%emt 00:05:32]} 19. Bf3
{[%clk 00:23:38]} {[%emt 00:00:40]} Rab8 {[%clk 00:51:38]} {[%emt 00:00:17]} 20.
Nd4 {[%clk 00:18:14]} {[%emt 00:05:55]} Bd7 {[%clk 00:46:43]} {[%emt 00:05:25]}
21. Bc6 {[%clk 00:15:54]} {[%emt 00:02:50]} Bc8 {[%clk 00:46:14]} {[%emt
00:00:59]} 22. Bf3 {[%clk 00:16:06]} {[%emt 00:00:18]} Bd7 {[%clk 00:46:00]}
{[%emt 00:00:44]} 23. Bc6 {[%clk 00:16:28]} {[%emt 00:00:08]} Bc8 {[%clk
00:46:25]} {[%emt 00:00:05]} 24. Bf3 {[%clk 00:16:54]} {[%emt 00:00:04]} Bd7
{[%emt 00:00:12]} 1/2-1/2

[Event "Senior Men Russian Championship 2022_HL"]
[Site "Saint-Petersburg, Russia"]
[Date "2022.09.30"]
[Round "7.6"]
[White "Mamoshin, Valery"]
[Black "Zhelnin, Vladimir V"]
[Result "0-1"]
[TimeControl "40+30"]
[WhiteElo "2203"]
[BlackElo "2344"]

1. e4 {[%clk 01:30:58]} c5 {[%clk 01:30:49]} {[%emt 00:00:12]} 2. Nc3 {[%clk
01:31:22]} {[%emt 00:00:07]} Nc6 {[%clk 01:25:41]} {[%emt 00:05:38]} 3. f4
{[%clk 01:31:39]} {[%emt 00:00:12]} g6 {[%clk 01:25:34]} {[%emt 00:00:37]} 4.
Nf3 {[%clk 01:32:01]} {[%emt 00:00:08]} Bg7 {[%clk 01:25:37]} {[%emt 00:00:27]}
5. Bc4 {[%clk 01:30:54]} {[%emt 00:01:37]} e6 {[%clk 01:23:29]} {[%emt
00:02:38]} 6. O-O {[%clk 01:30:45]} {[%emt 00:00:38]} Nge7 {[%clk 01:20:16]}
{[%emt 00:03:44]} 7. d3 {[%clk 01:22:13]} {[%emt 00:09:02]} O-O {[%clk
01:15:47]} {[%emt 00:04:59]} 8. a3 {[%clk 01:22:11]} {[%emt 00:00:32]} d5
{[%clk 01:06:28]} {[%emt 00:09:50]} 9. Ba2 {[%clk 01:22:32]} {[%emt 00:00:08]}
dxe4 {[%clk 01:02:38]} {[%emt 00:04:21]} 10. Nxe4 {[%clk 01:22:37]} {[%emt
00:00:24]} b6 {[%clk 01:02:21]} {[%emt 00:00:47]} 11. Qe1 {[%clk 01:17:37]}
{[%emt 00:05:30]} Nf5 {[%clk 01:01:25]} {[%emt 00:01:27]} 12. Rf2 {[%clk
01:08:42]} {[%emt 00:09:24]} a5 {[%clk 00:59:22]} {[%emt 00:02:34]} 13. Bd2
{[%clk 01:03:38]} {[%emt 00:05:33]} Bxb2 {[%clk 00:47:57]} {[%emt 00:11:55]} 14.
Bc3 {[%clk 01:03:48]} {[%emt 00:00:20]} Bxa1 {[%clk 00:42:16]} {[%emt
00:06:11]} 15. Bxa1 {[%clk 01:03:21]} {[%emt 00:00:57]} f6 {[%clk 00:38:56]}
{[%emt 00:03:51]} 16. g4 {[%clk 01:00:33]} {[%emt 00:03:16]} Nfd4 {[%clk
00:39:06]} {[%emt 00:00:20]} 17. g5 {[%clk 00:57:58]} {[%emt 00:03:04]} Nxf3+
{[%clk 00:35:47]} {[%emt 00:03:52]} 18. Rxf3 {[%clk 00:58:24]} {[%emt
00:00:04]} Nd4 {[%clk 00:36:01]} {[%emt 00:00:16]} 19. Rh3 {[%clk 00:57:20]}
{[%emt 00:01:32]} Ra7 {[%clk 00:30:57]} {[%emt 00:05:35]} 20. Nxf6+ {[%clk
00:56:37]} {[%emt 00:01:12]} Rxf6 {[%clk 00:31:14]} {[%emt 00:00:14]} 21. gxf6
{[%clk 00:56:20]} {[%emt 00:00:46]} Qxf6 {[%clk 00:28:11]} {[%emt 00:03:34]} 22.
Qe3 {[%clk 00:39:04]} {[%emt 00:17:46]} Rf7 {[%clk 00:24:03]} {[%emt 00:04:39]}
0-1

[Event "Senior Men Russian Championship 2022_HL"]
[Site "Saint-Petersburg, Russia"]
[Date "2022.09.30"]
[Round "7.7"]
[White "Lisenko, Alexander V"]
[Black "Berlin, Grigoriy"]
[Result "1-0"]
[TimeControl "40+30"]
[WhiteElo "2307"]
[BlackElo "2186"]

1. c4 {[%clk 01:30:57]} {[%emt 01:36:55]} e5 {[%clk 01:30:49]} {[%emt
00:00:14]} 2. Nf3 {[%clk 01:31:21]} {[%emt 00:00:05]} Nc6 {[%clk 01:31:05]}
{[%emt 00:00:14]} 3. d4 {[%clk 01:31:33]} {[%emt 00:00:18]} exd4 {[%clk
01:29:42]} {[%emt 00:01:53]} 4. Nxd4 {[%clk 01:31:57]} {[%emt 00:00:06]} Bb4+
{[%clk 01:29:16]} {[%emt 00:00:57]} 5. Bd2 {[%clk 01:32:00]} {[%emt 00:00:26]}
Bxd2+ {[%clk 01:28:36]} {[%emt 00:01:11]} 6. Qxd2 {[%clk 01:32:24]} {[%emt
00:00:05]} Nxd4 {[%clk 01:26:16]} {[%emt 00:02:51]} 7. Qxd4 {[%clk 01:32:36]}
{[%emt 00:00:17]} Qf6 {[%clk 01:22:10]} {[%emt 00:04:36]} 8. Qd2 {[%clk
01:26:31]} {[%emt 00:06:35]} Ne7 {[%clk 01:21:18]} {[%emt 00:01:23]} 9. Nc3
{[%clk 01:23:01]} {[%emt 00:03:59]} O-O {[%clk 01:18:07]} {[%emt 00:03:41]} 10.
g3 {[%clk 01:22:19]} {[%emt 00:01:11]} a6 {[%clk 01:09:42]} {[%emt 00:08:57]}
11. Bg2 {[%clk 01:22:18]} {[%emt 00:00:29]} d6 {[%clk 01:09:46]} {[%emt
00:00:27]} 12. O-O {[%clk 01:22:29]} {[%emt 00:00:19]} Rb8 {[%clk 01:08:53]}
{[%emt 00:01:24]} 13. Rac1 {[%clk 01:20:30]} {[%emt 00:02:28]} Nc6 {[%clk
01:04:49]} {[%emt 00:04:34]} 14. Nd5 {[%clk 01:18:28]} {[%emt 00:02:31]} Qd8
{[%clk 01:05:12]} {[%emt 00:00:08]} 15. Rc3 {[%clk 01:14:56]} {[%emt 00:04:01]}
Re8 {[%clk 01:01:40]} {[%emt 00:04:03]} 16. e4 {[%clk 01:13:29]} {[%emt
00:01:57]} Ne5 {[%clk 00:58:11]} {[%emt 00:03:58]} 17. f4 {[%clk 01:02:31]}
{[%emt 00:11:29]} Nd7 {[%clk 00:52:59]} {[%emt 00:05:42]} 18. Qd4 {[%clk
00:59:11]} {[%emt 00:03:50]} Nc5 {[%clk 00:49:52]} {[%emt 00:03:37]} 19. Re3
{[%clk 00:56:27]} {[%emt 00:03:13]} Ne6 {[%clk 00:39:51]} {[%emt 00:10:31]} 20.
Qd2 {[%clk 00:52:32]} {[%emt 00:04:25]} c6 {[%clk 00:36:48]} {[%emt 00:03:34]}
21. Nc3 {[%clk 00:52:28]} {[%emt 00:00:33]} c5 {[%clk 00:36:29]} {[%emt
00:00:50]} 22. Ne2 {[%clk 00:46:25]} {[%emt 00:06:32]} b5 {[%clk 00:34:40]}
{[%emt 00:02:20]} 23. cxb5 {[%clk 00:44:14]} {[%emt 00:02:41]} Rxb5 {[%clk
00:34:40]} {[%emt 00:00:29]} 24. b3 {[%clk 00:43:01]} {[%emt 00:01:43]} Rb4
{[%clk 00:27:10]} {[%emt 00:08:00]} 25. Rd3 {[%clk 00:36:54]} {[%emt 00:06:37]}
Bb7 {[%clk 00:17:36]} {[%emt 00:10:05]} 26. Rxd6 {[%clk 00:32:15]} {[%emt
00:05:09]} Qb8 {[%clk 00:17:29]} {[%emt 00:00:37]} 27. e5 {[%clk 00:29:10]}
{[%emt 00:03:34]} Bxg2 {[%clk 00:17:17]} {[%emt 00:00:42]} 28. Kxg2 {[%clk
00:29:34]} {[%emt 00:00:05]} c4 {[%clk 00:15:21]} {[%emt 00:02:27]} 29. f5
{[%clk 00:22:24]} {[%emt 00:07:40]} Nf8 {[%clk 00:10:43]} {[%emt 00:05:07]} 30.
f6 {[%clk 00:21:10]} {[%emt 00:01:45]} Rxe5 {[%clk 00:10:07]} {[%emt 00:01:07]}
31. Rf2 {[%clk 00:18:47]} {[%emt 00:02:51]} Re8 {[%clk 00:03:34]} {[%emt
00:07:04]} 32. fxg7 {[%clk 00:18:45]} {[%emt 00:00:32]} Ne6 {[%clk 00:03:49]}
{[%emt 00:00:16]} 33. Rd7 {[%clk 00:13:23]} {[%emt 00:05:52]} cxb3 {[%clk
00:03:57]} {[%emt 00:00:21]} 34. axb3 {[%clk 00:13:40]} {[%emt 00:00:14]} Rxb3
{[%clk 00:02:30]} {[%emt 00:01:56]} 35. Nd4 {[%clk 00:09:26]} {[%emt 00:04:43]}
Qa8+ {[%clk 00:01:16]} {[%emt 00:01:46]} 36. Kh3 {[%clk 00:09:13]} {[%emt
00:00:41]} Rb6 {[%clk 00:01:37]} {[%emt 00:00:11]} 37. Nf5 {[%clk 00:07:27]}
{[%emt 00:02:15]} Qe4 {[%clk 00:01:21]} {[%emt 00:00:46]} 38. Rxf7 {[%clk
00:06:05]} {[%emt 00:01:51]} Nd4 {[%clk 00:00:32]} {[%emt 00:01:21]} 39. Rf8+
{[%clk 00:05:31]} {[%emt 00:01:03]} Rxf8 {[%clk 00:00:41]} {[%emt 00:00:20]} 40.
gxf8=Q+ {[%clk 00:35:50]} {[%emt 00:00:12]} Kxf8 {[%clk 00:31:02]} {[%emt
00:00:09]} 41. Nd6+ {[%clk 00:36:07]} {[%emt 00:00:12]} 1-0

[Event "Senior Men Russian Championship 2022_HL"]
[Site "Saint-Petersburg, Russia"]
[Date "2022.09.30"]
[Round "7.8"]
[White "Kozlov, Oleg"]
[Black "Osmolny, Vladimir I."]
[Result "1-0"]
[TimeControl "40+30"]
[WhiteElo "2279"]
[BlackElo "2092"]

1. d4 {[%clk 01:30:55]} {[%emt 00:00:05]} d5 {[%clk 01:30:47]} {[%emt
00:00:13]} 2. c4 {[%clk 01:31:15]} {[%emt 00:00:11]} e6 {[%clk 01:27:08]}
{[%emt 00:04:08]} 3. Nf3 {[%clk 01:31:36]} {[%emt 00:00:09]} Nf6 {[%clk
01:27:22]} {[%emt 00:00:16]} 4. g3 {[%clk 01:30:52]} {[%emt 00:01:14]} Be7
{[%clk 01:27:33]} {[%emt 00:00:19]} 5. Bg2 {[%clk 01:31:13]} {[%emt 00:00:09]}
O-O {[%clk 01:27:35]} {[%emt 00:00:27]} 6. Qc2 {[%clk 01:29:34]} {[%emt
00:02:10]} b6 {[%clk 01:24:26]} {[%emt 00:03:40]} 7. cxd5 {[%clk 01:27:37]}
{[%emt 00:02:26]} exd5 {[%clk 01:24:20]} {[%emt 00:00:35]} 8. O-O {[%clk
01:27:59]} {[%emt 00:00:09]} Na6 {[%clk 01:24:00]} {[%emt 00:00:51]} 9. Bf4
{[%clk 01:12:55]} {[%emt 00:15:33]} Bb7 {[%clk 01:09:07]} {[%emt 00:15:23]} 10.
Nc3 {[%clk 01:06:10]} {[%emt 00:07:14]} Re8 {[%clk 01:01:21]} {[%emt 00:06:53]}
11. Rad1 {[%clk 00:58:47]} {[%emt 00:09:17]} h6 {[%clk 00:59:35]} {[%emt
00:02:17]} 12. Ne5 {[%clk 00:57:01]} {[%emt 00:02:15]} c6 {[%clk 00:53:04]}
{[%emt 00:07:01]} 13. Qa4 {[%clk 00:48:37]} {[%emt 00:08:54]} Qc8 {[%clk
00:42:33]} {[%emt 00:11:00]} 14. Rfe1 {[%clk 00:40:24]} {[%emt 00:08:43]} Bb4
{[%clk 00:39:18]} {[%emt 00:03:45]} 15. Rc1 {[%clk 00:39:46]} {[%emt 00:01:08]}
Qe6 {[%clk 00:38:37]} {[%emt 00:01:11]} 16. a3 {[%clk 00:26:20]} {[%emt
00:13:56]} Bxc3 {[%clk 00:37:33]} {[%emt 00:01:34]} 17. Rxc3 {[%clk 00:26:48]}
{[%emt 00:00:02]} c5 {[%clk 00:36:53]} {[%emt 00:01:10]} 18. Be3 {[%clk
00:15:46]} {[%emt 00:11:32]} Ne4 {[%clk 00:26:19]} {[%emt 00:11:04]} 19. Rcc1
{[%clk 00:15:44]} {[%emt 00:00:32]} f6 {[%clk 00:25:54]} {[%emt 00:00:55]} 20.
Nd3 {[%clk 00:09:34]} {[%emt 00:06:39]} Rac8 {[%clk 00:20:10]} {[%emt
00:06:14]} 21. dxc5 {[%clk 00:09:00]} {[%emt 00:01:05]} Nexc5 {[%clk 00:20:03]}
{[%emt 00:00:37]} 22. Nxc5 {[%clk 00:07:27]} {[%emt 00:02:03]} bxc5 {[%clk
00:18:43]} {[%emt 00:01:50]} 23. b4 {[%clk 00:07:29]} {[%emt 00:00:27]} c4
{[%clk 00:11:49]} {[%emt 00:07:25]} 24. Red1 {[%clk 00:02:25]} {[%emt
00:05:34]} Red8 {[%clk 00:06:32]} {[%emt 00:05:47]} 25. Qa5 {[%clk 00:02:50]}
{[%emt 00:00:05]} Nc7 {[%clk 00:05:54]} {[%emt 00:01:08]} 26. Qxa7 {[%clk
00:00:54]} {[%emt 00:02:25]} Qc6 {[%clk 00:04:10]} {[%emt 00:02:14]} 27. a4
{[%clk 00:01:13]} {[%emt 00:00:12]} Ra8 {[%clk 00:04:25]} {[%emt 00:00:15]} 28.
Qb6 {[%clk 00:01:34]} {[%emt 00:00:09]} Rxa4 {[%clk 00:04:37]} {[%emt
00:00:18]} 29. Qxc6 {[%clk 00:01:45]} {[%emt 00:00:19]} Bxc6 {[%clk 00:05:04]}
{[%emt 00:00:02]} 30. Rxc4 {[%clk 00:01:58]} {[%emt 00:00:17]} Ra6 {[%clk
00:04:46]} {[%emt 00:00:48]} 31. Rcc1 {[%clk 00:00:44]} {[%emt 00:01:44]} Kf7
{[%clk 00:01:38]} {[%emt 00:03:38]} 32. Rd2 {[%clk 00:00:54]} {[%emt 00:00:21]}
Ke6 {[%clk 00:01:18]} {[%emt 00:00:50]} 33. Rdc2 {[%clk 00:01:01]} {[%emt
00:00:23]} d4 {[%clk 00:00:57]} {[%emt 00:00:51]} 34. Rxc6+ {[%clk 00:01:24]}
{[%emt 00:00:07]} Rxc6 {[%clk 00:01:22]} {[%emt 00:00:05]} 35. Rxc6+ {[%clk
00:01:51]} {[%emt 00:00:02]} Kd7 {[%clk 00:01:48]} {[%emt 00:00:04]} 36. Bxd4
{[%clk 00:02:06]} {[%emt 00:00:16]} Rb8 {[%clk 00:01:58]} {[%emt 00:00:20]} 37.
Rc4 {[%clk 00:02:19]} {[%emt 00:00:17]} 1-0

[Event "Senior Men Russian Championship 2022_HL"]
[Site "Saint-Petersburg, Russia"]
[Date "2022.09.30"]
[Round "7.9"]
[White "Filipenko, Alexander V"]
[Black "Pushkov, Nikolai"]
[Result "1/2-1/2"]
[TimeControl "40+30"]
[WhiteElo "2171"]
[BlackElo "2206"]

1. e4 {[%clk 01:30:56]} {[%emt 00:00:03]} e6 {[%clk 01:30:57]} {[%emt
00:00:04]} 2. d4 {[%clk 01:31:19]} {[%emt 00:00:07]} d5 {[%clk 01:31:20]}
{[%emt 00:00:07]} 3. Nc3 {[%clk 01:31:46]} {[%emt 00:00:04]} dxe4 {[%clk
01:31:34]} {[%emt 00:00:16]} 4. Nxe4 {[%clk 01:32:07]} {[%emt 00:00:08]} Nd7
{[%clk 01:32:00]} {[%emt 00:00:04]} 5. Nf3 {[%clk 01:32:26]} {[%emt 00:00:11]}
Ngf6 {[%clk 01:32:28]} {[%emt 00:00:03]} 6. Nxf6+ {[%clk 01:32:32]} {[%emt
00:00:23]} Nxf6 {[%clk 01:32:56]} {[%emt 00:00:02]} 7. c3 {[%clk 01:31:43]}
{[%emt 00:01:20]} a6 {[%clk 01:32:35]} {[%emt 00:00:50]} 8. Be2 {[%clk
01:17:19]} {[%emt 00:14:54]} c5 {[%clk 01:31:33]} {[%emt 00:01:33]} 9. O-O
{[%clk 01:17:09]} {[%emt 00:00:40]} cxd4 {[%clk 01:31:27]} {[%emt 00:00:36]} 10.
Qxd4 {[%clk 01:17:04]} {[%emt 00:00:35]} Qxd4 {[%clk 01:31:32]} {[%emt
00:00:25]} 11. Nxd4 {[%clk 01:17:26]} {[%emt 00:00:08]} Bd7 {[%clk 01:24:11]}
{[%emt 00:07:51]} 12. Bf3 {[%clk 01:12:22]} {[%emt 00:05:33]} O-O-O {[%clk
01:24:26]} {[%emt 00:00:15]} 13. Bf4 {[%clk 01:12:14]} {[%emt 00:00:38]} Bc5
{[%clk 01:24:07]} {[%emt 00:00:48]} 14. Rad1 {[%clk 01:06:42]} {[%emt
00:06:03]} Ba4 {[%clk 01:15:20]} {[%emt 00:09:17]} 15. b3 {[%clk 01:02:26]}
{[%emt 00:04:46]} Bxd4 {[%clk 01:14:13]} {[%emt 00:01:36]} 16. Rxd4 {[%clk
01:00:01]} {[%emt 00:02:55]} Rxd4 {[%clk 01:14:04]} {[%emt 00:00:40]} 17. cxd4
{[%clk 01:00:20]} {[%emt 00:00:11]} Bc6 {[%clk 01:14:07]} {[%emt 00:00:26]} 18.
Bxc6 {[%clk 00:59:38]} {[%emt 00:01:13]} bxc6 {[%clk 01:14:35]} {[%emt
00:00:01]} 19. Be5 {[%clk 00:59:19]} {[%emt 00:00:49]} Rg8 {[%clk 01:14:52]}
{[%emt 00:00:12]} 20. Rc1 {[%clk 00:56:35]} {[%emt 00:03:14]} Kb7 {[%clk
01:12:14]} {[%emt 00:03:08]} 21. Bxf6 {[%clk 00:50:05]} {[%emt 00:07:01]} gxf6
{[%clk 01:12:37]} {[%emt 00:00:06]} 22. Rc3 {[%clk 00:48:35]} {[%emt 00:02:00]}
Rd8 {[%clk 01:12:32]} {[%emt 00:00:36]} 23. Rh3 {[%clk 00:47:47]} {[%emt
00:01:18]} Rxd4 {[%clk 01:10:48]} {[%emt 00:02:14]} 24. g3 {[%clk 00:48:05]}
{[%emt 00:00:11]} a5 {[%clk 01:09:46]} {[%emt 00:01:32]} 25. Rxh7 {[%clk
00:47:45]} {[%emt 00:00:50]} Rd7 {[%clk 01:10:09]} {[%emt 00:00:08]} 26. h4
{[%clk 00:44:16]} {[%emt 00:03:59]} Kc7 {[%clk 01:02:45]} {[%emt 00:07:54]} 27.
Rh8 {[%clk 00:30:28]} {[%emt 00:14:18]} f5 {[%clk 01:01:05]} {[%emt 00:02:10]}
28. Ra8 {[%clk 00:25:55]} {[%emt 00:05:03]} Kd6 {[%clk 00:59:55]} {[%emt
00:01:39]} 29. Rxa5 {[%clk 00:26:03]} {[%emt 00:00:24]} Ke7 {[%clk 00:59:02]}
{[%emt 00:01:22]} 30. Kg2 {[%clk 00:25:56]} {[%emt 00:00:37]} Kf6 {[%clk
00:59:21]} {[%emt 00:00:10]} 31. Rc5 {[%clk 00:23:57]} {[%emt 00:02:28]} Rd2
{[%clk 00:58:34]} {[%emt 00:01:18]} 32. a4 {[%clk 00:21:57]} {[%emt 00:02:31]}
Rd3 {[%clk 00:58:20]} {[%emt 00:00:43]} 33. Rc1 {[%clk 00:14:15]} {[%emt
00:08:12]} Rxb3 {[%clk 00:58:41]} {[%emt 00:00:09]} 34. Ra1 {[%clk 00:14:40]}
{[%emt 00:00:06]} Rb6 {[%clk 00:58:31]} {[%emt 00:00:40]} 35. a5 {[%clk
00:14:39]} {[%emt 00:00:31]} Ra6 {[%clk 00:58:59]} {[%emt 00:00:02]} 36. Kf3
{[%clk 00:13:41]} {[%emt 00:01:27]} Kg6 {[%clk 00:54:52]} {[%emt 00:04:36]} 37.
Ke3 {[%clk 00:12:26]} {[%emt 00:01:46]} e5 {[%clk 00:54:24]} {[%emt 00:00:58]}
38. Ra2 {[%clk 00:06:28]} {[%emt 00:06:29]} Kh5 {[%clk 00:52:50]} {[%emt
00:02:03]} 39. Ra4 {[%clk 00:06:40]} {[%emt 00:00:19]} f6 {[%clk 00:52:37]}
{[%emt 00:00:42]} 40. Kf3 {[%clk 00:36:12]} {[%emt 00:00:59]} c5 {[%clk
01:22:10]} {[%emt 00:00:56]} 41. Ke3 {[%clk 00:36:01]} {[%emt 00:00:41]} c4
{[%clk 01:21:10]} {[%emt 00:01:31]} 42. Kd2 {[%clk 00:34:49]} {[%emt 00:01:41]}
f4 {[%clk 01:16:19]} {[%emt 00:05:20]} 43. gxf4 {[%clk 00:32:02]} {[%emt
00:03:18]} e4 {[%clk 01:16:08]} {[%emt 00:00:41]} 44. Kc3 {[%clk 00:29:39]}
{[%emt 00:02:54]} Kxh4 {[%clk 01:15:08]} {[%emt 00:01:30]} 45. Kxc4 {[%clk
00:29:57]} {[%emt 00:00:11]} f5 {[%clk 01:15:27]} {[%emt 00:00:10]} 46. Kb5
{[%clk 00:16:59]} {[%emt 00:13:29]} Ra8 {[%clk 01:15:35]} {[%emt 00:00:23]} 47.
a6 {[%clk 00:16:51]} {[%emt 00:00:38]} Kg4 {[%clk 01:16:00]} {[%emt 00:00:04]}
48. Ra3 {[%clk 00:15:23]} {[%emt 00:01:59]} Kxf4 {[%clk 01:16:26]} {[%emt
00:00:04]} 49. Kb6 {[%clk 00:15:43]} {[%emt 00:00:10]} Ke5 {[%clk 01:01:44]}
{[%emt 00:15:11]} 50. Ra5+ {[%clk 00:15:17]} {[%emt 00:00:56]} Kf4 {[%clk
01:01:55]} {[%emt 00:00:18]} 51. Kb7 {[%clk 00:15:13]} {[%emt 00:00:35]} Rf8
{[%clk 01:01:51]} {[%emt 00:00:34]} 52. a7 {[%clk 00:12:53]} {[%emt 00:02:51]}
Kf3 {[%clk 01:01:57]} {[%emt 00:00:22]} 53. Rxf5+ {[%clk 00:12:40]} {[%emt
00:00:44]} Rxf5 {[%clk 01:02:25]} {[%emt 00:00:02]} 54. a8=Q {[%clk 00:13:09]}
{[%emt 00:00:02]} Kxf2 {[%clk 01:02:22]} {[%emt 00:00:33]} 55. Qa2+ {[%clk
00:12:39]} {[%emt 00:01:00]} Kf3 {[%clk 01:02:16]} {[%emt 00:00:35]} 56. Qe6
{[%clk 00:12:56]} {[%emt 00:00:13]} Rf4 {[%clk 01:02:08]} {[%emt 00:00:38]} 57.
Qh3+ {[%clk 00:13:08]} {[%emt 00:00:18]} Kf2 {[%clk 01:02:35]} {[%emt
00:00:04]} 58. Qh2+ {[%clk 00:12:57]} {[%emt 00:00:41]} Kf3 {[%clk 01:03:02]}
{[%emt 00:00:03]} 59. Qh5+ {[%clk 00:12:13]} {[%emt 00:01:14]} Kf2 {[%clk
01:03:14]} {[%emt 00:00:17]} 60. Qc5+ {[%clk 00:12:21]} {[%emt 00:00:23]} e3
{[%clk 01:03:14]} {[%emt 00:00:31]} 61. Kc6 {[%clk 00:11:20]} {[%emt 00:01:30]}
Kf3 {[%clk 01:03:04]} {[%emt 00:00:40]} 62. Qd5+ {[%clk 00:11:18]} {[%emt
00:00:33]} Kf2 {[%clk 01:03:26]} {[%emt 00:00:06]} 63. Qe5 {[%clk 00:10:19]}
{[%emt 00:01:30]} Rf3 {[%clk 01:03:45]} {[%emt 00:00:10]} 64. Qh2+ {[%clk
00:10:30]} {[%emt 00:00:20]} Kf1 {[%clk 01:04:13]} {[%emt 00:00:03]} 65. Qh1+
{[%clk 00:10:38]} {[%emt 00:00:22]} Kf2 {[%clk 01:04:40]} {[%emt 00:00:02]} 66.
Qh4+ {[%clk 00:10:07]} {[%emt 00:01:00]} Kf1 {[%clk 01:04:53]} {[%emt
00:00:17]} 67. Qe4 {[%clk 00:04:57]} {[%emt 00:05:40]} Kf2 {[%clk 01:05:15]}
{[%emt 00:00:09]} 68. Qd4 {[%clk 00:04:45]} {[%emt 00:00:43]} Kf1 {[%clk
01:05:28]} {[%emt 00:00:16]} 1/2-1/2